Cogmind - Beta 13 *** ADVENTURER MODE // 2024.04.04 @ 09:36:06 Player: BlakeOblivion Result: Destroyed by G-47 Trooper with Particle Gun Performance ------------- Evolutions (3) 1500 Regions Visited (5) 1000 Robots Destroyed (37) 185 Value Destroyed (1344) 1344 Prototype IDs (0) 0 Alien Tech Used (0) 0 Bonus (0) 0 TOTAL SCORE: 4029 Bonus ------- None Cogmind --------- Core Integrity 0/700 Matter 300/300 Energy 100/100 System Corruption 1% Temperature Cool (9) Movement Core (50) Location -7/Lower Caves Parts ------- > --- POWER (2) -------- (None) > --- PROPULSION (3) --- (None) > --- UTILITY (4) ------ (None) > --- WEAPON (4) ------- (None) > --- INVENTORY (5) ---- Improved Ion Engine High-capacity Storage Unit Peak State ------------ > --- POWER ------------ Deuterium Engine Micro Nuclear Core > --- PROPULSION ------- Light Treads Medium Treads > --- UTILITY ---------- Heat Sink Improved Heat Sink Energy Filter Improved Medium Armor Plating > --- WEAPON ----------- Shock Rifle Medium Laser Beam Rifle Plasma Cannon > --- INVENTORY -------- Improved Ion Engine Large Battery Light Armor Plating [Rating: 34] Favorites ----------- Power Deuterium Engine Engine Deuterium Engine Power Core Micro Nuclear Core Propulsion Light Treads Treads Light Treads Wheel Wheel Utility Small Storage Unit Device Improved Heat Sink Storage Small Storage Unit Processor Signal Interpreter Protection Light Armor Plating Weapon Beam Rifle Energy Gun Beam Rifle Energy Cannon Plasma Cannon Ballistic Gun Assault Rifle Build | -11 -10 -9 -8 -7 -7 ------- Run | Yrd Mat Mat Mat Fac Low Slots Evolved 6 | . . 2 2 2 . Power 1 | . . 1 . . . Propulsion 1 | . . . . 1 . Utility 2 | . . 1 1 . . Weapon 2 | . . . 1 1 . Parts Attached 49 | 5 4 13 12 13 2 Power 9 | 1 . 4 1 3 . Engine 6 | 1 . 2 1 2 . Core 3 | . . 2 . 1 . Reactor . | . . . . . . Propulsion 12 | 2 1 6 1 2 . Treads 9 | . . 6 1 2 . Leg . | . . . . . . Wheel 3 | 2 1 . . . . Hover . | . . . . . . Flight . | . . . . . . Utility 13 | . 2 1 5 3 2 Device 5 | . 1 . 2 1 1 Storage 4 | . . 1 2 . 1 Processor 1 | . 1 . . . . Hackware . | . . . . . . Protection 3 | . . . 1 2 . Artifact . | . . . . . . Weapon 15 | 2 1 2 5 5 . Energy Gun 7 | . . 1 2 4 . Energy Cannon 2 | . . . 1 1 . Ballistic Gun 6 | 2 1 1 2 . . Ballistic Cannon . | . . . . . . Launcher . | . . . . . . Special Weapon . | . . . . . . Impact Weapon . | . . . . . . Slashing Weapon . | . . . . . . Piercing Weapon . | . . . . . . Special Melee Weapon . | . . . . . . Unidentified Prototypes . | . . . . . . Corrupted Parts 1 | . . . 1 . . System Corruption 1 | . . . 1 . . Parts Lost 21 | . . . . 9 12 Power 3 | . . . . 1 2 Propulsion 4 | . . . . 3 1 Utility 7 | . . . . 2 5 Weapon 7 | . . . . 3 4 Highest Loss Streak 6 | . . . . 3 6 To Critical Strikes . | . . . . . . Average Slot Usage (%) 75 | . 79 97 100 83 41 Engine 9 | . 14 16 9 8 3 Core 5 | . . 5 9 5 6 Treads 11 | . . 16 18 13 3 Wheel 2 | . 28 4 . . . Device 10 | . 7 11 9 17 5 Storage 5 | . . 10 9 2 6 Processor 3 | . . 11 8 . . Protection 3 | . . . 9 7 . Energy Gun 11 | . . 10 10 18 8 Energy Cannon 4 | . . . 8 8 3 Ballistic Gun 4 | . 28 11 8 . . Naked Turns 14 | . . . . . 14 Heaviest Build 45 | 7 8 19 33 45 36 Greatest Support 62 | 20 20 40 42 62 28 Greatest Overweight (x) 6 | . . 5 . 2 6 Average Overweight (x) . | . . . . . 1 Largest Inventory Capacity 20 | 5 5 8 20 8 5 Average Capacity 6 | 5 5 7 8 5 5 Most Carried 8 | 3 5 8 8 7 3 Average Carried 4 | . 2 5 6 4 2 Final Capacity 8 | 5 5 8 8 5 5 Final Carried 6 | 2 4 6 6 3 2 Class Distribution -------------------- 40% | Scavenger-Tank 24% | Mutant 15% | Gunner 15% | Scavenger-Mutant 3% | Tank Dominant Class ---------------- Mutant | -10/Materials Scavenger-Mutant | -9/Materials Scavenger-Tank | -8/Materials Scavenger-Tank | -7/Factory Gunner | -7/Lower Caves Resources | -11 -10 -9 -8 -7 -7 ----------- Run | Yrd Mat Mat Mat Fac Low Matter Collected 860 | 256 61 200 189 144 10 Remotely . | . . . . . . Salvage Created 1531 | 38 73 396 232 716 76 Parts 65 | 1 8 23 7 24 2 Haulers Intercepted . | . . . . . . Recyclers Shooed . | . . . . . . Parts Field Recycled . | . . . . . . Retrieved Matter . | . . . . . . Parts Self-Destructed 2 | . . . . . 2 Prevented . | . . . . . . Kills | -11 -10 -9 -8 -7 -7 ------- Run | Yrd Mat Mat Mat Fac Low Combat Hostiles Destroyed 35 | 1 4 10 4 13 3 Guns 23 | 1 4 10 1 5 2 Cannons 8 | . . . 3 4 1 AOE 2 | . . . . 2 . Classes Destroyed 6 | 1 1 2 . 2 . Watcher 2 | . . 1 . 1 . Swarmer 10 | . 3 3 . 1 3 Grunt 16 | 1 1 4 1 9 . Brawler 1 | . . . . 1 . Sentry 7 | . . 3 3 1 . Programmer 1 | . . . . 1 . Best Kill Streak 4 | 1 3 4 1 2 3 Combat Bots Only 4 | 1 3 4 1 2 3 Max Kills in Single Turn 2 | 1 1 1 1 2 1 Gunslinging . | . . . . . . Exploded 2 | . . . . 2 . Melee . | . . . . . . Uniques/NPCs Destroyed . | . . . . . . Combat | -11 -10 -9 -8 -7 -7 -------- Run | Yrd Mat Mat Mat Fac Low Hostile Shots Fired 341 | 1 14 58 22 124 122 Missed 103 | 1 3 22 9 34 34 Damage Taken 2866 | . 71 364 193 1178 1060 Core 794 | . 16 60 9 102 607 Absorbed by Shields . | . . . . . . Ignored by Resistances 830 | . 23 106 56 344 301 Regen/Repaired (Parts) 28 | . . 28 . . . Core Remaining (%) 94 | 100 93 85 98 . . Volleys Fired 95 | 1 8 36 11 29 10 Largest 4 | 2 2 2 3 4 4 Hottest 239 | 40 40 50 126 239 236 Shots Fired 238 | 2 16 69 31 94 26 Gun 184 | 2 16 69 20 61 16 Cannon 54 | . . . 11 33 10 Launcher . | . . . . . . Special . | . . . . . . Kinetic 66 | 2 16 37 11 . . Thermal 131 | . . 32 9 73 17 Explosive . | . . . . . . Electromagnetic 41 | . . . 11 21 9 Robot Hit Streak 21 | 2 9 16 12 21 15 Robot Miss Streak 4 | . 2 2 1 2 4 Penetration Max . | . . . . . . Secondary Targets 3 | . 2 1 . . . Max Gunslinging Chain 1 | . 1 1 . . . Shots Hit Robots 181 | 2 12 58 23 68 18 Core Hits 69 | 2 5 21 6 27 8 Critical Kills 1 | . . 1 . . . Critical Parts Destroyed . | . . . . . . Critical Strikes 5 | . . 1 . 3 1 Burn 4 | . . . . 3 1 Destroy 1 | . . 1 . . . Melee Attacks . | . . . . . . Impact . | . . . . . . Slashing . | . . . . . . Piercing . | . . . . . . Sneak Attacks . | . . . . . . Combat Hostiles . | . . . . . . Follow-up Attacks . | . . . . . . Damage Inflicted 3075 | 23 143 630 448 1378 453 Guns 1835 | 23 143 630 172 681 186 Cannons 1124 | . . . 276 623 225 Explosions 116 | . . . . 74 42 Melee . | . . . . . . Ramming . | . . . . . . Kinetic 666 | 23 143 384 116 . . Thermal 1635 | . . 246 56 979 354 Explosive . | . . . . . . Electromagnetic 774 | . . . 276 399 99 Impact . | . . . . . . Slashing . | . . . . . . Piercing . | . . . . . . Highest Corruption 1 | . . . 1 1 1 Average Corruption 1 | . . . 1 1 1 Corruption Purged . | . . . . . . Corruption Blocked . | . . . . . . Effects 7 | . . . . 4 3 Matter Fused 3 | . . . . 2 1 Heat Flow Errors 1 | . . . . 1 . Energy Discharges 1 | . . . . . 1 Data Loss (minor) 1 | . . . . 1 . Data Loss (major) 1 | . . . . . 1 Overload Shots . | . . . . . . Overflow Damage 30 | . . . . 28 2 Projectiles 30 | . . . . 28 2 Explosions . | . . . . . . Melee . | . . . . . . Knockbacks . | . . . . . . Impact . | . . . . . . Kinetic . | . . . . . . Secondary . | . . . . . . Self-Inflicted Damage . | . . . . . . Shots . | . . . . . . Rammed . | . . . . . . Targets Rammed . | . . . . . . Kicked . | . . . . . . Crushed . | . . . . . . Highest Temperature 459 | . . 81 100 459 410 Average Temperature 109 | . . 17 42 147 169 Received Heat Transfer 1344 | . 24 207 90 594 429 Effects 18 | . . . . 14 4 Shutdowns 3 | . . . . 1 2 Energy Bleed 3 | . . . . 2 1 Interference 12 | . . . . 11 1 Siege Activations . | . . . . . . Robots Corrupted . | . . . . . . Combat Hostiles . | . . . . . . Parts Fried 3 | . . . 1 2 . Impact Corruptions . | . . . . . . Robots Melted 2 | . . . . 2 . Combat Hostiles 2 | . . . . 2 . Parts Melted 12 | . . 1 . 9 2 Heat Transferred 4263 | . . 999 125 2393 746 Parts Sabotaged . | . . . . . . Parts Stolen . | . . . . . . Parts Stripped . | . . . . . . Power Chain Reactions 3 | . . . . 1 2 Alert | -11 -10 -9 -8 -7 -7 ------- Run | Yrd Mat Mat Mat Fac Low Peak Influence 211 | 20 102 211 197 207 . Initial 42 | . 11 36 42 . . Average 75 | 5 39 111 98 54 . Maximum Alert Level 1 | . . 1 . 1 . Low Security (%) 95 | 100 100 91 100 96 . Level 1 4 | . . 8 . 3 . Level 2 . | . . . . . . Level 3 . | . . . . . . Level 4 . | . . . . . . Level 5 . | . . . . . . High Security . | . . . . . . Max Security . | . . . . . . Squads Dispatched 4 | . . 1 2 1 . Investigation . | . . . . . . Extermination 1 | . . . . 1 . Reinforcement 3 | . . 1 2 . . Assault . | . . . . . . Garrison . | . . . . . . Intercept . | . . . . . . Searches Triggered . | . . . . . . Construction Impeded . | . . . . . . Haulers Reinforced . | . . . . . . Active Scanning Responses . | . . . . . . Cargo Convoy Interrupts . | . . . . . . Stealth | -11 -10 -9 -8 -7 -7 --------- Run | Yrd Mat Mat Mat Fac Low Distress Signals 1 | . . . . 1 . Communications Jammed . | . . . . . . Distress Signals . | . . . . . . Times Spotted 49 | 1 4 14 5 18 7 Peak Tracking Total 5 | 1 3 5 2 4 3 Tactical Retreats 4 | . . 1 . 2 1 Traps | -11 -10 -9 -8 -7 -7 ------- Run | Yrd Mat Mat Mat Fac Low Traps Triggered 6 | . 1 2 1 2 . Indirectly . | . . . . . . Trap Hack Attempts . | . . . . . . Triggered . | . . . . . . Disarmed . | . . . . . . Reprogrammed . | . . . . . . Reused . | . . . . . . Traps Extracted . | . . . . . . Installed . | . . . . . . Triggered . | . . . . . . Machines | -11 -10 -9 -8 -7 -7 ---------- Run | Yrd Mat Mat Mat Fac Low Machines Disabled . | . . . . . . Max in Single Turn . | . . . . . . Machines Repaired . | . . . . . . Machines Dismantled . | . . . . . . Machines Sabotaged . | . . . . . . Overloaded Fab Kills . | . . . . . . Hacking | -11 -10 -9 -8 -7 -7 --------- Run | Yrd Mat Mat Mat Fac Low Machines Accessed 2 | . . 1 . . 1 Terminals . | . . . . . . Fabricators . | . . . . . . Repair Stations 1 | . . 1 . . . Recycling Units . | . . . . . . Scanalyzers . | . . . . . . Garrison Access . | . . . . . . Total Hacks 4 | . . 3 . . 1 Successful 4 | . . 3 . . 1 Failed . | . . . . . . Catastrophic . | . . . . . . Database Lockouts . | . . . . . . Manual . | . . . . . . Terminals . | . . . . . . Fabricators . | . . . . . . Repair Stations 3 | . . 3 . . . Recycling Units . | . . . . . . Scanalyzers . | . . . . . . Garrison Access . | . . . . . . Terminal Hacks 1 | . . . . . 1 Open Door 1 | . . . . . 1 Fabricator Hacks . | . . . . . . Repair Station Hacks 3 | . . 3 . . . Scan Component 1 | . . 1 . . . Repair 1 | . . 1 . . . Refit 1 | . . 1 . . . Recycling Unit Hacks . | . . . . . . Scanalyzer . | . . . . . . Garrison Access Hacks . | . . . . . . Unauthorized Hacks . | . . . . . . Terminals . | . . . . . . Fabricators . | . . . . . . Repair Stations . | . . . . . . Recycling Units . | . . . . . . Scanalyzers . | . . . . . . Garrison Access . | . . . . . . Data Cores Recovered . | . . . . . . Used . | . . . . . . Hacking Detections 1 | . . 1 . . . Full Trace Events . | . . . . . . Feedback Events . | . . . . . . Feedback Blocked . | . . . . . . Robot Schematics Acquired . | . . . . . . Robots Built . | . . . . . . Authchips . | . . . . . . Time . | . . . . . . Total Robot Build Rating . | . . . . . . Part Schematics Acquired . | . . . . . . Parts Built . | . . . . . . Authchips . | . . . . . . Time . | . . . . . . Total Part Build Rating . | . . . . . . Parts Repaired 1 | . . 1 . . . Time 26 | . . 26 . . . Parts Recycled . | . . . . . . Recycled Matter . | . . . . . . Retrieved Matter . | . . . . . . Retrieved Components . | . . . . . . Parts Scanalyzed . | . . . . . . Part Schematics Acquired . | . . . . . . Parts Damaged . | . . . . . . Bothacking | -11 -10 -9 -8 -7 -7 ------------ Run | Yrd Mat Mat Mat Fac Low Used RIF Installer . | . . . . . . Robots Hacked . | . . . . . . Non-combat . | . . . . . . Combat . | . . . . . . Robot Hacks Applied . | . . . . . . Relay Couplers Released . | . . . . . . Fabnet Peak Effective % . | . . . . . . Robots Rewired . | . . . . . . Allies Hacked . | . . . . . . Hacks Repelled . | . . . . . . Allies | -11 -10 -9 -8 -7 -7 -------- Run | Yrd Mat Mat Mat Fac Low Total Allies . | . . . . . . Largest Group . | . . . . . . Highest-Rated Group . | . . . . . . Highest-Rated Ally . | . . . . . . Total Orders . | . . . . . . Ally Attacks . | . . . . . . Total Damage . | . . . . . . Kills . | . . . . . . Allies Corrupted . | . . . . . . Allies Melted . | . . . . . . Intel | -11 -10 -9 -8 -7 -7 ------- Run | Yrd Mat Mat Mat Fac Low Robot Analysis Total . | . . . . . . Derelict Logs Recovered 2 | . . . . . 2 Drone Launches . | . . . . . . Drone Recoveries . | . . . . . . Exploration | -11 -10 -9 -8 -7 -7 ------------- Run | Yrd Mat Mat Mat Fac Low Turns Passed 3413 | 77 147 681 430 1060 1018 Spaces Moved 1801 | 86 123 368 232 491 501 Core 302 | 22 . 3 . . 277 Treads 1170 | . . 223 232 491 224 Legs . | . . . . . . Wheels 329 | 64 123 142 . . . Hover . | . . . . . . Flight . | . . . . . . Fastest Speed 50 | 50 80 80 152 152 50 Average Speed 160 | 72 80 130 152 191 190 Slowest Speed 350 | 80 80 300 160 320 350 Overloaded Moves . | . . . . . . Propulsion Burnouts . | . . . . . . Robots Hopped . | . . . . . . Cave-ins Triggered . | . . . . . . Exploration Rate (%) 21 | 9 15 32 17 11 43 Regions Visited 5 Branch Regions 1 Pre-discovered Areas . | . . . . . . Known Exits Taken 2 | . 1 1 . . . Unknown Exits Taken 3 | 1 . . 1 1 . Scrap Searched 1 | . . . . . 1 Spaces Dug . | . . . . . . Terrain Destroyed 15 | . . . . 7 8 Melee . | . . . . . . Projectile . | . . . . . . AOE 15 | . . . . 7 8 Terrain Rammed . | . . . . . . Walls Destroyed . | . . . . . . Machines Disabled . | . . . . . . Actions | -11 -10 -9 -8 -7 -7 --------- Run | Yrd Mat Mat Mat Fac Low Total 2127 | 98 155 503 283 545 543 Wait 124 | . 15 67 13 . 29 Move 1796 | 85 122 367 231 490 501 Hop . | . . . . . . Pick Up 46 | 7 6 14 9 9 1 Fast Attach . | . . . . . . Attach 34 | 5 4 10 4 9 2 Detach 2 | . . 1 1 . . Swap 15 | . . 3 8 4 . Drop 15 | . . 5 6 4 . Fire 95 | 1 8 36 11 29 10 Melee . | . . . . . . Ram . | . . . . . . Kick . | . . . . . . Crush . | . . . . . . Escape Stasis . | . . . . . . Rewire . | . . . . . . Trap . | . . . . . . Miscellaneous . | . . . . . . Route ------- -11/Scrapyard -10/Materials -9/Materials -8/Materials -7/Factory -7/Lower Caves (discovered 1 exit: Low) History --------- Turn | Location | Event 2 | -11/Scrapyard | Met Revision 17 53 | -11/Scrapyard | Discovered new exit (range 8) 78 | -11/Scrapyard | Entered Materials 160 | -10/Materials | Discovered new exit (range 15) 224 | -10/Materials | Identified exit to Materials 225 | -10/Materials | Entered another Materials area 225 | -9/Materials | Evolved 2 slots: Power x1, Utility x1 303 | -9/Materials | Build established: Mutant 314 | -9/Materials | Repaired Assault Rifle? 672 | -9/Materials | Build established: Scavenger-Mutant 898 | -9/Materials | Discovered new exit (range 4) 902 | -9/Materials | Identified exit to Materials 906 | -9/Materials | Entered another Materials area 906 | -8/Materials | Evolved 2 slots: Utility x1, Weapon x1 1203 | -8/Materials | Build established: Scavenger-Tank 1330 | -8/Materials | Discovered new exit (range 3) 1336 | -8/Materials | Entered Factory 1336 | -7/Factory | Evolved 2 slots: Propulsion x1, Weapon x1 2021 | -7/Factory | Lost 3 parts (1n1u1w) 2381 | -7/Factory | Discovered new exit (range 6) 2396 | -7/Factory | Entered Lower Caves 2446 | -7/Lower Caves | Lost 3 parts (2u1w) 2554 | -7/Lower Caves | Learned location of 1 exit from Proximity Caves 2710 | -7/Lower Caves | Build established: Gunner 2863 | -7/Lower Caves | Identified exit to Lower Caves 2952 | -7/Lower Caves | Spotted B-75 Beast 3010 | -7/Lower Caves | Lost 6 parts (1p1n1u3w) 3244 | -7/Lower Caves | Build established: Mutant 3350 | -7/Lower Caves | Core integrity fell below 50% 3405 | -7/Lower Caves | Core integrity fell below 20% 3414 | -7/Lower Caves | Destroyed by G-47 Trooper with Particle Gun Last Messages --------------- 02944_ System corrupted: Energy discharge (-168). 02954_ Chain reaction triggered in Rnf. Deuterium Engine. 02955_ Shock Rifle destroyed. 02955_ ECM Suite destroyed. 02960_ Med. Treads destroyed. 02960_ Beam Rifle destroyed. 02964_ Plasma Cannon destroyed. 02965_ Overheating: System interference. 02965_ Heat Sink temporarily disabled. 02979_ Deuterium Engine destroyed. 03026_ Heat Sink destroyed. 03342_ System corrupted: Substantial component data lost. 03361_ Critical hit (Burn: +37). 03376_ Mic. Nuclear Core destroyed. 03376_ Critical hit (Burn: +37). 03400_ Lrg. Battery destroyed. 03400_ Critical hit (Burn: +37). Map ----- +----------------------------------------------------+ | ?????????????????????????????????????????????????? | | ?????????????????????????????????????????????????? | | ?????????????????????????????????????????????????? | | ?????????????????????????????????????????????????? | | ?????????????????????????????????????????????????? | | ?????????????????????????????????????????????????? | | ???????????????????????????????????###???????????? | | ??????????????????????????????????? ##??????????? | | ??????????????????????????????????? % ??????????? | | ??????????????????????????????????? ???????????? | | ??????????????????????????????????? ????????????? | | ?????????????????????????????????## #????????????? | | ?????????????????????????????????#% #????????????? | | ??????????????????????????????#### #????????????? | | ????????????????????????????## #????????????? | | ????????????????????????????# ## ##???????????? | | ?????????????????????????#### # ##??????????? | | ?????????????????????????# # # # %#??????????? | | ?????????????????????????# # # # ######??#### | | ?????????????????????????# ### ## #### | | ?????????????????????????## # #?# #% ## | | ??????????????????????????## #?# # % | | ???????????????????????????# ### # #%# % | | ???????????????????????##### ## # # | | ???????????????????????# ggg # ####### # # | | ???????????????????????# @ #### #????# #### | | ???????????????????????# ##??##### #????# ###??# | | ???????????????????????####???????? ????## ????# | | ??????????????????????????????????? ?????#????# | | ??????????????????????????????????? % ?????????# | | ??????????????????????????????????? % ???????? | | ??????????????????????????????????? #??????? | | ???????????????????????????????????? #???? | | ???????????????????????????????????? ##???? | | ???????????????????????????????????? ##????? | | ????????????????????????????????????# #??????? | | ????????????????????????????????????? ???????#### | | ????????????????????????????????????? ??????????? | | ?????????????????????????????????????????????????? | | ?????????????????????????????????????????????????? | | ?????????????????????????????????????????????????? | | ?????????????????????????????????????????????????? | | ?????????????????????????????????????????????????? | | ?????????????????????????????????????????????????? | | ?????????????????????????????????????????????????? | | ?????????????????????????????????????????????????? | | ?????????????????????????????????????????????????? | | ?????????????????????????????????????????????????? | | ?????????????????????????????????????????????????? | | ?????????????????????????????????????????????????? | +----------------------------------------------------+ Best States ------------- Heat Dissipation 58 Energy Generation 24 Energy Capacity 525 Matter Stores 300 Matter Capacity 300 Sight Range 16 Terrain Scan Range 14 Terrain Scan Density 10 ECM Strength 1 Armor Coverage 225 Resistance: KI 20 Resistance: TH 20 Resistance: EX 20 Resistance: EM 20 Resistance: I 20 Resistance: S 20 Resistance: P 20 Evasion (%) 50 Recoil Reduction 3 Energy Filtering 30 Offensive Hacking 10 Item Schematics ----------------- None Robot Schematics ------------------ None Fabricated ------------ Nothing Alien Tech Used ----------------- None Achievements -------------- It's Just You Made in Tau Ceti IV Part-time Mechanic Challenges ------------ None Game ------ Seed TeslaImprovedGenerator Manual? 0 Play Time 00:50:03 Cumulative 2.0 hours Start 2024.04.04 @ 08:45:10 End 2024.04.04 @ 09:36:06 Sessions 1 Manual Loads 0 Difficulty Adventurer Special Mode None Game No. 3 Rogue 0 Adventurer 3 Explorer 0 Win Type - Total 0 Types 0/0/0/0/0/0/0/0/0 Lore% 2 Gallery% 4 Achievement% 4 Wizard Run 0 Options --------- Layout 1 ASCII 0 Keyboard 0 Movement Arrows Keybinds 0 Fullscreen 1 Font 24/Smallcaps Map View 50x35 Zoom Use 0% Tactical HUD 1 Map Filters NONE Filters NONE Steam 1 RUN: 8d789e02-ba03-4ace-8d0b-e9dd4bb970b3